[Event "*** Titled Tuesday Blitz"]
[Site "Chess.com"]
[Date "2020.03.03"]
[Round "6"]
[White "BeanScreen"]
[Black "Danfii"]
[Result "1-0"]
[WhiteElo "2638"]
[BlackElo "2393"]
[TimeControl "180+1"]
[EndTime "10:01:41 PST"]
[Termination "BeanScreen won by resignation"]

1. e4 {[%clk 0:03:00.8]} 1... e5 {[%clk 0:02:59.8]} 2. Nf3 {[%clk 0:03:00.8]}
2... Nc6 {[%clk 0:02:59.9]} 3. Bc4 {[%clk 0:03:01.5]} 3... Bc5 {[%clk
0:02:59.5]} 4. c3 {[%clk 0:03:02.1]} 4... Nf6 {[%clk 0:02:59.3]} 5. d3 {[%clk
0:03:02.5]} 5... d6 {[%clk 0:02:59.2]} 6. Nbd2 {[%clk 0:03:02.7]} 6... a6 {[%clk
0:02:59.3]} 7. Bb3 {[%clk 0:03:02.6]} 7... h6 {[%clk 0:02:59.1]} 8. Nf1 {[%clk
0:03:02.5]} 8... O-O {[%clk 0:02:58.5]} 9. Ng3 {[%clk 0:03:02.8]} 9... Be6
{[%clk 0:02:58.9]} 10. Bxe6 {[%clk 0:03:02.5]} 10... fxe6 {[%clk 0:02:58.8]} 11.
O-O {[%clk 0:03:03.4]} 11... d5 {[%clk 0:02:29]} 12. Qb3 {[%clk 0:03:00.8]}
12... Qd7 {[%clk 0:02:20]} 13. Bd2 {[%clk 0:02:55.5]} 13... Bb6 {[%clk
0:01:59.4]} 14. Rad1 {[%clk 0:02:55.2]} 14... Rae8 {[%clk 0:01:58.8]} 15. Rfe1
{[%clk 0:02:50.9]} 15... Qf7 {[%clk 0:01:35.8]} 16. Be3 {[%clk 0:02:44.4]} 16...
d4 {[%clk 0:01:27.2]} 17. cxd4 {[%clk 0:02:33.9]} 17... exd4 {[%clk 0:01:26.8]}
18. Bd2 {[%clk 0:02:31.2]} 18... Ng4 {[%clk 0:01:20.9]} 19. Rf1 {[%clk
0:02:19.9]} 19... Qg6 {[%clk 0:01:08]} 20. Rc1 {[%clk 0:02:14.7]} 20... Rxf3
{[%clk 0:01:04.1]} 21. gxf3 {[%clk 0:02:12.7]} 21... Nge5 {[%clk 0:01:04.7]} 22.
Kg2 {[%clk 0:01:59.2]} 22... h5 {[%clk 0:00:50.9]} 23. h4 {[%clk 0:01:55.3]}
23... Rf8 {[%clk 0:00:35.1]} 24. f4 {[%clk 0:01:54.6]} 24... Ng4 {[%clk
0:00:23.9]} 25. f5 {[%clk 0:01:53.3]} 25... Qh7 {[%clk 0:00:22.5]} 26. Qxe6+
{[%clk 0:01:51.1]} 26... Kh8 {[%clk 0:00:22.8]} 27. Qg6 {[%clk 0:01:51]} 27...
Qxg6 {[%clk 0:00:21.6]} 28. fxg6 {[%clk 0:01:51.9]} 28... Nce5 {[%clk
0:00:22.3]} 29. Bb4 {[%clk 0:01:29.9]} 29... Rf6 {[%clk 0:00:20.4]} 30. Bc5
{[%clk 0:01:29.8]} 30... Nxd3 {[%clk 0:00:19.5]} 31. Bxb6 {[%clk 0:01:23.4]}
31... Nxc1 {[%clk 0:00:17.4]} 32. Bxd4 {[%clk 0:01:21]} 32... Rb6 {[%clk
0:00:18.1]} 33. Bxb6 {[%clk 0:01:21]} 33... cxb6 {[%clk 0:00:19]} 34. Rxc1
{[%clk 0:01:20.8]} 1-0

[Event "*** Titled Tuesday Blitz"]
[Site "Chess.com"]
[Date "2020.03.03"]
[Round "6"]
[White "earling8018"]
[Black "saisree"]
[Result "0-1"]
[WhiteElo "2014"]
[BlackElo "2292"]
[TimeControl "180+1"]
[EndTime "10:01:46 PST"]
[Termination "saisree won on time"]

1. d4 {[%clk 0:03:00.9]} 1... d5 {[%clk 0:03:00]} 2. c4 {[%clk 0:02:59.1]} 2...
c6 {[%clk 0:03:00.5]} 3. cxd5 {[%clk 0:02:59.2]} 3... cxd5 {[%clk 0:03:00.4]} 4.
Nc3 {[%clk 0:02:59.7]} 4... Nc6 {[%clk 0:03:00.2]} 5. Bf4 {[%clk 0:02:58.7]}
5... Nf6 {[%clk 0:03:00.2]} 6. e3 {[%clk 0:02:59.1]} 6... e6 {[%clk 0:02:59.7]}
7. Nf3 {[%clk 0:02:57]} 7... a6 {[%clk 0:02:56.6]} 8. Bd3 {[%clk 0:02:57.1]}
8... Bd6 {[%clk 0:02:56.6]} 9. O-O {[%clk 0:02:48.5]} 9... O-O {[%clk
0:02:55.2]} 10. Qe2 {[%clk 0:02:42.5]} 10... b5 {[%clk 0:02:41.8]} 11. Bxd6
{[%clk 0:02:21]} 11... Qxd6 {[%clk 0:02:41.3]} 12. Rfc1 {[%clk 0:02:09.3]} 12...
Bb7 {[%clk 0:02:40.2]} 13. Nd2 {[%clk 0:02:02.2]} 13... Na5 {[%clk 0:02:35]} 14.
f3 {[%clk 0:01:35.1]} 14... e5 {[%clk 0:02:23.4]} 15. dxe5 {[%clk 0:01:03.9]}
15... Qxe5 {[%clk 0:02:24.3]} 16. f4 {[%clk 0:01:01]} 16... Qd6 {[%clk
0:02:21.5]} 17. Nf3 {[%clk 0:00:58.7]} 17... Rfe8 {[%clk 0:02:21.1]} 18. Ne5
{[%clk 0:00:55.5]} 18... Nc6 {[%clk 0:02:20.1]} 19. Nxc6 {[%clk 0:00:51.1]}
19... Bxc6 {[%clk 0:02:21]} 20. Qf2 {[%clk 0:00:48.5]} 20... Rad8 {[%clk
0:02:18.2]} 21. h3 {[%clk 0:00:46.1]} 21... d4 {[%clk 0:02:15.1]} 22. exd4
{[%clk 0:00:43.9]} 22... Qxd4 {[%clk 0:02:15]} 23. Qxd4 {[%clk 0:00:42]} 23...
Rxd4 {[%clk 0:02:14.6]} 24. Bf1 {[%clk 0:00:16]} 24... Bb7 {[%clk 0:01:32.8]}
25. Rd1 {[%clk 0:00:12.5]} 25... Rxf4 {[%clk 0:01:31.7]} 26. Rd6 {[%clk
0:00:12.7]} 26... h6 {[%clk 0:01:23.9]} 27. Rb6 {[%clk 0:00:11.1]} 27... Bc8
{[%clk 0:01:21.9]} 28. a4 {[%clk 0:00:11.3]} 28... Rb4 {[%clk 0:01:21.1]} 29.
axb5 {[%clk 0:00:04.1]} 29... Rxb2 {[%clk 0:01:17]} 0-1

[Event "*** Titled Tuesday Blitz"]
[Site "Chess.com"]
[Date "2020.03.03"]
[Round "6"]
[White "Off-War"]
[Black "vovachesss"]
[Result "1-0"]
[WhiteElo "2737"]
[BlackElo "2564"]
[TimeControl "180+1"]
[EndTime "10:02:00 PST"]
[Termination "Off-War won on time"]

1. c4 {[%clk 0:02:57.6]} 1... e5 {[%clk 0:02:58]} 2. Nc3 {[%clk 0:02:58.1]} 2...
Nf6 {[%clk 0:02:58]} 3. Nf3 {[%clk 0:02:58.6]} 3... Bb4 {[%clk 0:02:58.5]} 4.
Nxe5 {[%clk 0:02:58.2]} 4... O-O {[%clk 0:02:52.6]} 5. e3 {[%clk 0:02:55.7]}
5... d5 {[%clk 0:02:51.3]} 6. a3 {[%clk 0:02:53.4]} 6... Bxc3 {[%clk 0:02:49.3]}
7. bxc3 {[%clk 0:02:54.3]} 7... Ne4 {[%clk 0:02:36.6]} 8. Be2 {[%clk 0:02:41.5]}
8... Qg5 {[%clk 0:02:29.5]} 9. Nd3 {[%clk 0:02:12]} 9... Qxg2 {[%clk 0:02:18.3]}
10. Bf3 {[%clk 0:02:12]} 10... Qh3 {[%clk 0:01:48.8]} 11. Nf4 {[%clk 0:02:10]}
11... Qh4 {[%clk 0:01:44.2]} 12. Qe2 {[%clk 0:02:10.3]} 12... Nc6 {[%clk
0:01:17]} 13. cxd5 {[%clk 0:02:05.7]} 13... Ng5 {[%clk 0:00:45.3]} 14. dxc6
{[%clk 0:02:03]} 14... bxc6 {[%clk 0:00:46.2]} 15. d3 {[%clk 0:01:52.9]} 15...
Rb8 {[%clk 0:00:45.5]} 16. Bg2 {[%clk 0:01:52.6]} 16... Bg4 {[%clk 0:00:44.7]}
17. Qf1 {[%clk 0:01:48.8]} 17... Rb3 {[%clk 0:00:40.4]} 18. Bd2 {[%clk
0:01:31.2]} 18... Rfb8 {[%clk 0:00:38.6]} 19. Rc1 {[%clk 0:01:31.7]} 19... Rxa3
{[%clk 0:00:27.6]} 20. h3 {[%clk 0:01:31.8]} 20... Nf3+ {[%clk 0:00:27.4]} 21.
Bxf3 {[%clk 0:01:31.8]} 21... Bxf3 {[%clk 0:00:28.3]} 22. Rg1 {[%clk 0:01:32.4]}
22... Ra2 {[%clk 0:00:19.3]} 23. Rg3 {[%clk 0:01:31.8]} 23... Rbb2 {[%clk
0:00:07.9]} 24. Rxf3 {[%clk 0:01:32]} 24... Rxd2 {[%clk 0:00:08.5]} 25. Qg2
{[%clk 0:01:24.2]} 25... Qe7 {[%clk 0:00:08.4]} 26. Kf1 {[%clk 0:01:23.7]} 26...
Qa3 {[%clk 0:00:06.9]} 27. Re1 {[%clk 0:01:23.7]} 27... g6 {[%clk 0:00:06.1]}
28. Kg1 {[%clk 0:01:23.3]} 28... Qxc3 {[%clk 0:00:06.3]} 29. Rf1 {[%clk
0:01:23.7]} 29... a5 {[%clk 0:00:04.6]} 30. Qg5 {[%clk 0:01:23.3]} 30... a4
{[%clk 0:00:04]} 31. Qd8+ {[%clk 0:01:22.6]} 31... Kg7 {[%clk 0:00:04.1]} 32.
Nh5+ {[%clk 0:01:23.3]} 32... gxh5 {[%clk 0:00:02.7]} 33. Rg3+ {[%clk 0:01:23]}
1-0

[Event "*** Titled Tuesday Blitz"]
[Site "Chess.com"]
[Date "2020.03.03"]
[Round "6"]
[White "gena217"]
[Black "rpragchess"]
[Result "1-0"]
[WhiteElo "3010"]
[BlackElo "2779"]
[TimeControl "180+1"]
[EndTime "10:02:06 PST"]
[Termination "gena217 won by checkmate"]

1. e4 {[%clk 0:02:59.1]} 1... e5 {[%clk 0:02:57.8]} 2. Nf3 {[%clk 0:02:58.9]}
2... Nc6 {[%clk 0:02:56.9]} 3. Bb5 {[%clk 0:02:58.4]} 3... a6 {[%clk 0:02:56.3]}
4. Ba4 {[%clk 0:02:57.9]} 4... Nf6 {[%clk 0:02:56.3]} 5. O-O {[%clk 0:02:56.8]}
5... b5 {[%clk 0:02:55.4]} 6. Bb3 {[%clk 0:02:56.5]} 6... Bc5 {[%clk 0:02:54.1]}
7. c3 {[%clk 0:02:55.5]} 7... d6 {[%clk 0:02:53.6]} 8. d4 {[%clk 0:02:55.1]}
8... Bb6 {[%clk 0:02:52.9]} 9. Be3 {[%clk 0:02:55.2]} 9... O-O {[%clk 0:02:49]}
10. h3 {[%clk 0:02:52.9]} 10... Rb8 {[%clk 0:02:38.5]} 11. Nbd2 {[%clk
0:02:52.2]} 11... h6 {[%clk 0:02:37.9]} 12. Re1 {[%clk 0:02:45.6]} 12... Re8
{[%clk 0:02:37.6]} 13. a3 {[%clk 0:02:39.3]} 13... Bb7 {[%clk 0:02:21.9]} 14.
Bc2 {[%clk 0:02:35.3]} 14... Nd7 {[%clk 0:01:50.4]} 15. Nf1 {[%clk 0:02:32.8]}
15... Ne7 {[%clk 0:01:48.3]} 16. Ng3 {[%clk 0:02:31]} 16... Ng6 {[%clk
0:01:47.1]} 17. Qd2 {[%clk 0:02:25.7]} 17... exd4 {[%clk 0:01:06.5]} 18. cxd4
{[%clk 0:02:26.6]} 18... Nf6 {[%clk 0:01:06.6]} 19. Bxh6 {[%clk 0:02:13]} 19...
gxh6 {[%clk 0:00:59.3]} 20. Qxh6 {[%clk 0:02:13.9]} 20... Re6 {[%clk 0:00:54.6]}
21. d5 {[%clk 0:01:41.8]} 21... Re7 {[%clk 0:00:44.8]} 22. Nf5 {[%clk
0:01:40.8]} 22... Qf8 {[%clk 0:00:42.1]} 23. Qg5 {[%clk 0:01:40.3]} 23... Nh7
{[%clk 0:00:39.7]} 24. Qg4 {[%clk 0:01:33.6]} 24... Kh8 {[%clk 0:00:37.9]} 25.
Qh5 {[%clk 0:01:25]} 25... Kg8 {[%clk 0:00:15.8]} 26. e5 {[%clk 0:01:20]} 26...
Rxe5 {[%clk 0:00:15.3]} 27. Rxe5 {[%clk 0:01:14.5]} 27... dxe5 {[%clk 0:00:13]}
28. Nxe5 {[%clk 0:01:13.8]} 28... Qc5 {[%clk 0:00:09.6]} 29. Nxg6 {[%clk
0:01:04.1]} 29... Qxf2+ {[%clk 0:00:09.6]} 30. Kh1 {[%clk 0:01:03.9]} 30... Qxc2
{[%clk 0:00:09.7]} 31. Nge7+ {[%clk 0:01:01.9]} 31... Kh8 {[%clk 0:00:09.6]} 32.
Qxf7 {[%clk 0:01:00.5]} 32... Nf8 {[%clk 0:00:02.3]} 33. Qg7# {[%clk 0:01:00]}
1-0

[Event "*** Titled Tuesday Blitz"]
[Site "Chess.com"]
[Date "2020.03.03"]
[Round "6"]
[White "Misha_Bilous"]
[Black "bangchess21"]
[Result "1-0"]
[WhiteElo "2483"]
[BlackElo "2582"]
[TimeControl "180+1"]
[EndTime "10:02:08 PST"]
[Termination "Misha_Bilous won by resignation"]

1. d4 {[%clk 0:03:00.9]} 1... Nf6 {[%clk 0:02:59.9]} 2. c4 {[%clk 0:03:01.1]}
2... e6 {[%clk 0:03:00.1]} 3. Nf3 {[%clk 0:03:01.3]} 3... Bb4+ {[%clk
0:02:59.4]} 4. Bd2 {[%clk 0:03:01.3]} 4... a5 {[%clk 0:02:58.8]} 5. g3 {[%clk
0:03:00.9]} 5... d6 {[%clk 0:02:58.8]} 6. Bg2 {[%clk 0:03:01]} 6... Qe7 {[%clk
0:02:59.3]} 7. O-O {[%clk 0:03:01.2]} 7... e5 {[%clk 0:02:59.2]} 8. Bg5 {[%clk
0:02:58.8]} 8... exd4 {[%clk 0:02:59.3]} 9. Nxd4 {[%clk 0:02:54.5]} 9... h6
{[%clk 0:02:49]} 10. Bf4 {[%clk 0:02:38.1]} 10... O-O {[%clk 0:02:47.3]} 11. a3
{[%clk 0:02:31.5]} 11... Bc5 {[%clk 0:02:47]} 12. Nc3 {[%clk 0:02:32.1]} 12...
Bb6 {[%clk 0:02:09.3]} 13. Qd3 {[%clk 0:01:50.8]} 13... Na6 {[%clk 0:01:56.6]}
14. Nf5 {[%clk 0:01:33.9]} 14... Bxf5 {[%clk 0:01:49.1]} 15. Qxf5 {[%clk
0:01:33.4]} 15... Rab8 {[%clk 0:01:15.3]} 16. Nd5 {[%clk 0:01:06.7]} 16... Nxd5
{[%clk 0:01:12.9]} 17. cxd5 {[%clk 0:01:07.6]} 17... Nc5 {[%clk 0:01:02.5]} 18.
Rfe1 {[%clk 0:00:48.6]} 18... Nb3 {[%clk 0:00:55.6]} 19. Rad1 {[%clk 0:00:44.2]}
19... Nc5 {[%clk 0:00:34.1]} 20. e4 {[%clk 0:00:40.8]} 20... g6 {[%clk
0:00:28.5]} 21. Qh3 {[%clk 0:00:41.1]} 21... h5 {[%clk 0:00:25.2]} 22. e5 {[%clk
0:00:40]} 22... dxe5 {[%clk 0:00:23.7]} 23. Bxe5 {[%clk 0:00:40.1]} 23... Qd7
{[%clk 0:00:23.9]} 24. Qh4 {[%clk 0:00:39.5]} 24... Qg4 {[%clk 0:00:23.3]} 25.
Qf6 {[%clk 0:00:38.7]} 1-0

[Event "*** Titled Tuesday Blitz"]
[Site "Chess.com"]
[Date "2020.03.03"]
[Round "6"]
[White "piscatorox"]
[Black "FedaMaster"]
[Result "0-1"]
[WhiteElo "2266"]
[BlackElo "2426"]
[TimeControl "180+1"]
[EndTime "10:02:11 PST"]
[Termination "FedaMaster won by resignation"]

1. e4 {[%clk 0:03:00.9]} 1... c5 {[%clk 0:02:58.1]} 2. Nf3 {[%clk 0:03:00.7]}
2... d6 {[%clk 0:02:58.2]} 3. d4 {[%clk 0:03:00.6]} 3... cxd4 {[%clk 0:02:58.7]}
4. Qxd4 {[%clk 0:03:01]} 4... Bd7 {[%clk 0:02:47.9]} 5. c4 {[%clk 0:02:58.9]}
5... Bc6 {[%clk 0:02:47.9]} 6. Nc3 {[%clk 0:02:56.8]} 6... Nd7 {[%clk
0:02:47.9]} 7. Be2 {[%clk 0:02:53]} 7... Ngf6 {[%clk 0:02:42.9]} 8. h3 {[%clk
0:02:43.7]} 8... g6 {[%clk 0:02:35.8]} 9. O-O {[%clk 0:02:30.4]} 9... Bg7 {[%clk
0:02:35.1]} 10. Bg5 {[%clk 0:02:16.8]} 10... O-O {[%clk 0:02:34.4]} 11. Qe3
{[%clk 0:02:16.2]} 11... Qb6 {[%clk 0:02:25.8]} 12. Qxb6 {[%clk 0:01:55.1]}
12... Nxb6 {[%clk 0:02:25]} 13. Nd2 {[%clk 0:01:53.9]} 13... Rfc8 {[%clk
0:02:20.4]} 14. Rac1 {[%clk 0:01:51.4]} 14... Nbd7 {[%clk 0:02:19]} 15. b3
{[%clk 0:01:48.5]} 15... a6 {[%clk 0:02:18.4]} 16. a4 {[%clk 0:01:36.3]} 16...
h6 {[%clk 0:02:11.7]} 17. Be3 {[%clk 0:01:27]} 17... Ne8 {[%clk 0:02:04.3]} 18.
Nd5 {[%clk 0:01:19]} 18... Kf8 {[%clk 0:02:01.1]} 19. Nb6 {[%clk 0:01:13.3]}
19... Nxb6 {[%clk 0:02:00.4]} 20. Bxb6 {[%clk 0:01:13.4]} 20... Nf6 {[%clk
0:01:41.1]} 21. f3 {[%clk 0:01:05.4]} 21... Nd7 {[%clk 0:01:37.9]} 22. Be3
{[%clk 0:00:58.2]} 22... a5 {[%clk 0:01:27.3]} 23. Nb1 {[%clk 0:00:46.3]} 23...
Nc5 {[%clk 0:01:17]} 24. Bxc5 {[%clk 0:00:43.3]} 24... dxc5 {[%clk 0:01:16.9]}
25. Nc3 {[%clk 0:00:43.4]} 25... Rd8 {[%clk 0:01:02.7]} 26. Nd5 {[%clk
0:00:19.9]} 26... e6 {[%clk 0:01:02.3]} 27. Nc7 {[%clk 0:00:19.7]} 27... Rac8
{[%clk 0:01:00.6]} 28. Nb5 {[%clk 0:00:19]} 28... Rd2 {[%clk 0:01:01.4]} 29. Bd1
{[%clk 0:00:17]} 29... Rcd8 {[%clk 0:00:56.7]} 30. Bc2 {[%clk 0:00:16.3]} 30...
Bxb5 {[%clk 0:00:52]} 31. axb5 {[%clk 0:00:15.5]} 31... Bb2 {[%clk 0:00:47.7]}
32. Rcd1 {[%clk 0:00:13.7]} 32... Bd4+ {[%clk 0:00:47.9]} 33. Kh2 {[%clk
0:00:11.9]} 33... Rxc2 {[%clk 0:00:47.3]} 34. Rd3 {[%clk 0:00:11.4]} 34... Be5+
{[%clk 0:00:46.2]} 0-1

[Event "*** Titled Tuesday Blitz"]
[Site "Chess.com"]
[Date "2020.03.03"]
[Round "6"]
[White "platy3"]
[Black "pouya21"]
[Result "0-1"]
[WhiteElo "2859"]
[BlackElo "2753"]
[TimeControl "180+1"]
[EndTime "10:02:12 PST"]
[Termination "pouya21 won by resignation"]

1. e4 {[%clk 0:02:51.7]} 1... c5 {[%clk 0:02:58.6]} 2. Nf3 {[%clk 0:02:50.3]}
2... d6 {[%clk 0:02:58.8]} 3. d4 {[%clk 0:02:50.8]} 3... cxd4 {[%clk 0:02:58.4]}
4. Nxd4 {[%clk 0:02:51.5]} 4... Nf6 {[%clk 0:02:58.3]} 5. Nc3 {[%clk 0:02:52.1]}
5... a6 {[%clk 0:02:58.1]} 6. h3 {[%clk 0:02:50.8]} 6... Nc6 {[%clk 0:02:57.4]}
7. Nb3 {[%clk 0:02:47.1]} 7... b5 {[%clk 0:02:51.6]} 8. g4 {[%clk 0:02:44.1]}
8... Bb7 {[%clk 0:02:51.9]} 9. g5 {[%clk 0:02:43.9]} 9... Nd7 {[%clk 0:02:51.5]}
10. Bg2 {[%clk 0:02:44.2]} 10... e6 {[%clk 0:02:48.5]} 11. h4 {[%clk 0:02:44.3]}
11... Be7 {[%clk 0:02:44.5]} 12. a3 {[%clk 0:02:43.6]} 12... Rc8 {[%clk
0:02:36.5]} 13. f4 {[%clk 0:02:43.4]} 13... h6 {[%clk 0:02:29.1]} 14. g6 {[%clk
0:02:39.1]} 14... Bxh4+ {[%clk 0:02:21.3]} 15. Kf1 {[%clk 0:02:37.2]} 15... Bf6
{[%clk 0:02:19.4]} 16. Qxd6 {[%clk 0:02:32.1]} 16... Bxc3 {[%clk 0:02:01.4]} 17.
bxc3 {[%clk 0:02:29.6]} 17... Qe7 {[%clk 0:01:58]} 18. gxf7+ {[%clk 0:02:16.6]}
18... Kxf7 {[%clk 0:01:55.9]} 19. Qd1 {[%clk 0:02:15.5]} 19... Rhf8 {[%clk
0:01:53.2]} 20. e5 {[%clk 0:02:09.6]} 20... Kg8 {[%clk 0:01:50.8]} 21. Kg1
{[%clk 0:02:09.7]} 21... Ndxe5 {[%clk 0:01:46.9]} 22. fxe5 {[%clk 0:02:06.8]}
22... Nxe5 {[%clk 0:01:46.1]} 23. Bxb7 {[%clk 0:01:49.5]} 23... Qxb7 {[%clk
0:01:46.2]} 24. Nd4 {[%clk 0:01:50.2]} 24... Rxc3 {[%clk 0:01:41.3]} 25. Qe1
{[%clk 0:01:37.9]} 25... Rxc2 {[%clk 0:01:11.7]} 26. Rh2 {[%clk 0:01:30]} 26...
Rxh2 {[%clk 0:01:05.2]} 27. Kxh2 {[%clk 0:01:30.9]} 27... Qd5 {[%clk 0:01:02.4]}
28. Bb2 {[%clk 0:01:29.9]} 28... Rf4 {[%clk 0:00:59.4]} 29. Rc1 {[%clk
0:01:21.3]} 29... Nd3 {[%clk 0:00:45.3]} 30. Qg3 {[%clk 0:01:04]} 30... Qe4
{[%clk 0:00:38.5]} 31. Nxe6 {[%clk 0:00:52.1]} 31... Rh4+ {[%clk 0:00:35.3]} 0-1

[Event "*** Titled Tuesday Blitz"]
[Site "Chess.com"]
[Date "2020.03.03"]
[Round "6"]
[White "Sjakkerntobi"]
[Black "Turkey-Champion"]
[Result "0-1"]
[WhiteElo "2267"]
[BlackElo "2476"]
[TimeControl "180+1"]
[EndTime "10:02:19 PST"]
[Termination "Turkey-Champion won by resignation"]

1. e4 {[%clk 0:03:00.6]} 1... c5 {[%clk 0:02:58.7]} 2. Nf3 {[%clk 0:03:00.9]}
2... e6 {[%clk 0:02:58.5]} 3. d4 {[%clk 0:03:01.3]} 3... cxd4 {[%clk 0:02:59.4]}
4. Nxd4 {[%clk 0:03:02.2]} 4... Nf6 {[%clk 0:03:00.1]} 5. Nc3 {[%clk 0:03:01.8]}
5... Nc6 {[%clk 0:03:00.6]} 6. Ndb5 {[%clk 0:03:00.7]} 6... Bb4 {[%clk
0:03:00.1]} 7. Nd6+ {[%clk 0:03:00.3]} 7... Ke7 {[%clk 0:02:59.8]} 8. Nxc8+
{[%clk 0:02:52]} 8... Rxc8 {[%clk 0:02:59.2]} 9. Bd3 {[%clk 0:02:52.9]} 9... d5
{[%clk 0:02:59.4]} 10. exd5 {[%clk 0:02:51.3]} 10... Nxd5 {[%clk 0:02:57.4]} 11.
O-O {[%clk 0:02:51.6]} 11... Nxc3 {[%clk 0:02:53.8]} 12. bxc3 {[%clk 0:02:52.5]}
12... Bxc3 {[%clk 0:02:54.5]} 13. Rb1 {[%clk 0:02:53]} 13... b6 {[%clk
0:02:47.6]} 14. Ba3+ {[%clk 0:02:52.8]} 14... Kd7 {[%clk 0:02:28.8]} 15. Ba6+
{[%clk 0:02:52.3]} 15... Kc7 {[%clk 0:02:29.2]} 16. Bxc8 {[%clk 0:02:51.8]}
16... Qxd1 {[%clk 0:02:29.2]} 17. Rfxd1 {[%clk 0:02:52.7]} 17... Rxc8 {[%clk
0:02:28.3]} 18. Rd3 {[%clk 0:02:53.2]} 18... Be5 {[%clk 0:02:26.6]} 19. Rbd1
{[%clk 0:02:53.2]} 19... Rd8 {[%clk 0:02:24.7]} 20. Rxd8 {[%clk 0:02:51.7]}
20... Nxd8 {[%clk 0:02:25.6]} 21. g3 {[%clk 0:02:50.2]} 21... Nc6 {[%clk
0:02:24.3]} 22. f4 {[%clk 0:02:50]} 22... Bc3 {[%clk 0:02:20.4]} 23. Kf2 {[%clk
0:02:35.1]} 23... b5 {[%clk 0:02:13.4]} 24. Bd6+ {[%clk 0:02:31.1]} 24... Kb6
{[%clk 0:02:08.8]} 25. Bf8 {[%clk 0:02:17.2]} 25... Kc7 {[%clk 0:01:59.1]} 26.
Bc5 {[%clk 0:02:09.4]} 26... a5 {[%clk 0:01:53.4]} 27. Kf3 {[%clk 0:02:06.3]}
27... a4 {[%clk 0:01:52.8]} 28. Ke4 {[%clk 0:02:05.8]} 28... b4 {[%clk
0:01:47.6]} 29. Bd6+ {[%clk 0:02:05.9]} 29... Kb6 {[%clk 0:01:47.7]} 30. Be5
{[%clk 0:02:05.8]} 30... f5+ {[%clk 0:01:46.6]} 31. Kd3 {[%clk 0:02:04.1]} 31...
Bxe5 {[%clk 0:01:41.8]} 32. fxe5 {[%clk 0:02:04.4]} 32... Nxe5+ {[%clk
0:01:42.2]} 33. Kd4 {[%clk 0:02:05.3]} 33... Nf3+ {[%clk 0:01:17.4]} 34. Kc4
{[%clk 0:02:04.8]} 34... e5 {[%clk 0:01:18]} 35. Kxb4 {[%clk 0:02:03.4]} 35...
e4 {[%clk 0:01:18.5]} 36. Rd7 {[%clk 0:02:00.6]} 36... Kc6 {[%clk 0:01:11.4]}
37. Rxg7 {[%clk 0:01:58.4]} 37... Kd6 {[%clk 0:01:11.7]} 38. Rg8 {[%clk
0:01:55]} 38... Ke7 {[%clk 0:01:02.3]} 39. Rg7+ {[%clk 0:01:54.9]} 39... Kf6
{[%clk 0:00:59.6]} 40. Rg8 {[%clk 0:01:54.9]} 40... Kf7 {[%clk 0:00:59.1]} 41.
Rh8 {[%clk 0:01:44.7]} 41... e3 {[%clk 0:00:59.1]} 42. Rxh7+ {[%clk 0:01:45]}
42... Kf6 {[%clk 0:00:55.4]} 43. Rh6+ {[%clk 0:01:43.1]} 43... Kf7 {[%clk
0:00:52.4]} 44. Rh7+ {[%clk 0:01:42.5]} 44... Ke8 {[%clk 0:00:43.5]} 45. Rh8+
{[%clk 0:01:42.5]} 45... Ke7 {[%clk 0:00:43.6]} 46. Rh7+ {[%clk 0:01:42.1]}
46... Kd6 {[%clk 0:00:37.6]} 47. Rh8 {[%clk 0:01:29.6]} 47... e2 {[%clk
0:00:28.7]} 48. Re8 {[%clk 0:01:29.1]} 48... Ne5 {[%clk 0:00:28.2]} 49. Rd8+
{[%clk 0:01:22.9]} 49... Ke7 {[%clk 0:00:27.8]} 0-1

[Event "*** Titled Tuesday Blitz"]
[Site "Chess.com"]
[Date "2020.03.03"]
[Round "6"]
[White "dusanacns"]
[Black "Zq1"]
[Result "0-1"]
[WhiteElo "2643"]
[BlackElo "2557"]
[TimeControl "180+1"]
[EndTime "10:02:25 PST"]
[Termination "Zq1 won on time"]

1. e4 {[%clk 0:03:00]} 1... c5 {[%clk 0:02:59.6]} 2. Nf3 {[%clk 0:02:57.6]} 2...
d6 {[%clk 0:02:59.6]} 3. d4 {[%clk 0:02:57.4]} 3... cxd4 {[%clk 0:02:59.8]} 4.
Nxd4 {[%clk 0:02:58.3]} 4... Nf6 {[%clk 0:02:59.8]} 5. Nc3 {[%clk 0:02:58.9]}
5... Nc6 {[%clk 0:03:00]} 6. Bg5 {[%clk 0:02:49.6]} 6... e6 {[%clk 0:02:55.6]}
7. Bb5 {[%clk 0:02:49.4]} 7... Bd7 {[%clk 0:02:54.3]} 8. Qd3 {[%clk 0:02:49.5]}
8... Be7 {[%clk 0:02:49.6]} 9. O-O-O {[%clk 0:02:24.7]} 9... a6 {[%clk
0:02:48.4]} 10. Bxc6 {[%clk 0:02:24.4]} 10... bxc6 {[%clk 0:02:42.6]} 11. e5
{[%clk 0:02:18]} 11... dxe5 {[%clk 0:02:30.8]} 12. Nf3 {[%clk 0:02:17.8]} 12...
Nd5 {[%clk 0:02:19.9]} 13. Bxe7 {[%clk 0:02:14.3]} 13... Qxe7 {[%clk 0:02:19]}
14. Nxd5 {[%clk 0:01:34.8]} 14... cxd5 {[%clk 0:02:16.4]} 15. Nxe5 {[%clk
0:01:25.1]} 15... Bb5 {[%clk 0:02:09.5]} 16. Qg3 {[%clk 0:01:16.3]} 16... O-O
{[%clk 0:02:06.1]} 17. Rhe1 {[%clk 0:01:02.8]} 17... Rac8 {[%clk 0:02:04.3]} 18.
Kb1 {[%clk 0:00:59.3]} 18... a5 {[%clk 0:02:02.3]} 19. f4 {[%clk 0:00:51.8]}
19... Qf6 {[%clk 0:02:00.5]} 20. Qb3 {[%clk 0:00:44.4]} 20... Bc4 {[%clk
0:01:58.6]} 21. Qe3 {[%clk 0:00:39.8]} 21... Rc7 {[%clk 0:01:52.7]} 22. g4
{[%clk 0:00:34.7]} 22... Rb8 {[%clk 0:01:46.7]} 23. Rd4 {[%clk 0:00:28]} 23...
a4 {[%clk 0:01:42.5]} 24. b3 {[%clk 0:00:15.3]} 24... axb3 {[%clk 0:01:38.9]}
25. axb3 {[%clk 0:00:16.2]} 25... Rcb7 {[%clk 0:01:28.5]} 26. Nxc4 {[%clk
0:00:14.1]} 26... dxc4 {[%clk 0:01:27.6]} 27. Rxc4 {[%clk 0:00:15]} 27... Ra8
{[%clk 0:01:24.6]} 28. Qd4 {[%clk 0:00:14.4]} 28... Qe7 {[%clk 0:01:19.5]} 29.
Qc3 {[%clk 0:00:14]} 29... Rbb8 {[%clk 0:01:08.7]} 30. Rd1 {[%clk 0:00:13.2]}
30... h6 {[%clk 0:01:05.4]} 31. Rc7 {[%clk 0:00:09.2]} 31... Qh4 {[%clk
0:00:58.2]} 32. Qg3 {[%clk 0:00:05.7]} 32... Qf6 {[%clk 0:00:57.2]} 33. Qc3
{[%clk 0:00:05.9]} 33... Qxf4 {[%clk 0:00:56.7]} 34. Qd4 {[%clk 0:00:03]} 34...
Qxh2 {[%clk 0:00:49.5]} 35. Rf1 {[%clk 0:00:01.9]} 35... Qxc7 {[%clk 0:00:48.7]}
0-1